fUST/lending_fUST_20250502
["ID","MTS","AMOUNT","RATE_DAILY","PERIOD"]
[359565757,1746126633246,-209.25013091,0.00018273,2]
[359565759,1746126633257,-500.0,0.00018273,2]
[359565760,1746126633267,-500.0,0.00018273,2]
[359565761,1746126633277,-160.7576221,0.00018273,2]
[359565762,1746126633287,-375.49303812,0.00018273,2]
[359565763,1746126633297,-500.0,0.00018273,2]
[359565764,1746126633307,-500.0,0.00018273,2]
[359565765,1746126633317,-500.0,0.00018273,2]
[359565766,1746126633328,-500.0,0.00018273,2]
[359565767,1746126633337,-500.0,0.00018273,2]
[359565768,1746126633347,-500.0,0.00018273,2]
[359565769,1746126633357,-191.682165,0.00018273,2]
[359565770,1746126633367,-500.0,0.00018273,2]
[359565771,1746126633378,-500.42441715,0.00018273,2]
[359565772,1746126633388,-500.0,0.00018273,2]
[359565773,1746126633398,-500.0,0.00018273,2]
[359565774,1746126633408,-500.0,0.00018273,2]
[359565775,1746126633418,-500.0,0.00018273,2]
[359565776,1746126633428,-500.0,0.00018273,2]
[359565777,1746126633438,-500.0,0.00018273,2]
[359565778,1746126633448,-160.0,0.00018289,2]
[359565779,1746126633458,-151.0,0.000183,2]
[359565780,1746126633468,-151.0,0.000183,2]
[359565781,1746126633478,-152.0,0.00018524,2]
[359565782,1746126633488,-500.0,0.00018534,2]
[359565783,1746126633498,-151.0,0.00018585,2]
[359565784,1746126633508,-500.0,0.00018808,2]
[359565785,1746126633518,-151.0,0.000189,2]
[359565786,1746126633528,-740.55580054,0.000189,2]
[359565788,1746126633538,-194.0,0.00018941,2]
[359565790,1746126633548,-333.50301395,0.00019082,2]
[359565794,1746126633577,-166.49698605,0.00019082,2]
[359565796,1746126633587,-233.716215,0.00019178,2]
[359565798,1746126633598,-27.84699745,0.00019178,2]
[359565865,1746126638448,-263.77477913,0.00018255,2]
[359565866,1746126638458,-588.08626701,0.00018255,2]
[359565868,1746126638468,-53.91066741,0.00018255,2]
[359565870,1746126638480,-446.08933259,0.00018255,2]
[359565872,1746126638491,-368.24576663,0.00018255,2]
[359565873,1746126638503,-653.96976556,0.00018255,2]
[359565874,1746126638515,-1935.25676055,0.00018255,2]
[359565875,1746126638525,-2957.47229274,0.00018255,2]
[359565877,1746126638536,-500.0,0.00018255,2]
[359565879,1746126638547,-2957.47229274,0.00018255,2]
[359565881,1746126638556,-2957.47229274,0.00018255,2]
[359565882,1746126638566,-500.0,0.00018255,2]
[359565884,1746126638575,-2957.47229274,0.00018255,2]
[359565885,1746126638586,-2957.47229274,0.00018255,2]
[359565886,1746126638596,-456.48008062,0.00018255,2]
[359565887,1746126638606,-2957.47229274,0.00018255,2]
[359565888,1746126638615,-2957.47229274,0.00018255,2]
[359565889,1746126638625,-2957.47229274,0.00018255,2]
[359565890,1746126638635,-2957.47229274,0.00018255,2]
[359565891,1746126638647,-2957.47229274,0.00018255,2]
[359565892,1746126638658,-2957.47229274,0.00018255,2]
[359565893,1746126638668,-2957.47229274,0.00018255,2]
[359565894,1746126638678,-2957.47229274,0.00018255,2]
[359565896,1746126638687,-2957.47229274,0.00018255,2]
[359565898,1746126638697,-2957.47229274,0.00018255,2]
[359565900,1746126638707,-2957.47229274,0.00018255,2]
[359565902,1746126638717,-2957.47229274,0.00018255,2]
[359565904,1746126638726,-2957.47229274,0.00018255,2]
[359565906,1746126638736,-2957.47229274,0.00018255,2]
[359565908,1746126638746,-2957.47229274,0.00018255,2]
[359565910,1746126638756,-2957.47229274,0.00018255,2]
[359565912,1746126638765,-2957.47229274,0.00018255,2]
[359565914,1746126638775,-2957.47229274,0.00018255,2]
[359565916,1746126638786,-2957.47229274,0.00018255,2]
[359565918,1746126638795,-2957.47229274,0.00018255,2]
[359565920,1746126638805,-2957.47229274,0.00018255,2]
[359565922,1746126638814,-2957.47229274,0.00018255,2]
[359565924,1746126638824,-2957.47229274,0.00018255,2]
[359565926,1746126638834,-2957.47229274,0.00018255,2]
[359565928,1746126638844,-2957.47229274,0.00018255,2]
[359565930,1746126638853,-2957.47229274,0.00018255,2]
[359565932,1746126638862,-2957.47229274,0.00018255,2]
[359565934,1746126638872,-2957.47229274,0.00018255,2]
[359565936,1746126638882,-2957.47229274,0.00018255,2]
[359565938,1746126638891,-2957.47229274,0.00018255,2]
[359565940,1746126638901,-2957.47229274,0.00018255,2]
[359565942,1746126638910,-2957.47229274,0.00018255,2]
[359565944,1746126638920,-2957.47229274,0.00018255,2]
[359565946,1746126638929,-2957.47229274,0.00018255,2]
[359565948,1746126638938,-2957.47229274,0.00018255,2]
[359565950,1746126638948,-2957.47229274,0.00018255,2]
[359565952,1746126638957,-2957.47229274,0.00018255,2]
[359565954,1746126638967,-2957.47229274,0.00018255,2]
[359565956,1746126638976,-2957.47229274,0.00018255,2]
[359565958,1746126638986,-2957.47229274,0.00018255,2]
[359565960,1746126638996,-2957.47229274,0.00018255,2]
[359565962,1746126639007,-2957.47229274,0.00018255,2]
[359565964,1746126639017,-2957.47229274,0.00018255,2]
[359565966,1746126639028,-2957.47229274,0.00018255,2]
[359565968,1746126639039,-2957.47229274,0.00018255,2]
[359565971,1746126639052,-2957.47229274,0.00018255,2]
[359565972,1746126639062,-2957.47229274,0.00018255,2]
[359565975,1746126639073,-2957.47229274,0.00018255,2]
[359565977,1746126639083,-2957.47229274,0.00018255,2]
[359565978,1746126639092,-2957.47229274,0.00018255,2]
[359565980,1746126639103,-2957.47229274,0.00018255,2]
[359565983,1746126639113,-2957.47229274,0.00018255,2]
[359565985,1746126639123,-272.15300255,0.00019178,2]
[359565987,1746126639132,-151.0,0.000192,2]
[359565989,1746126639142,-100000.0,0.00019329,2]
[359565991,1746126639151,-320.0,0.00019356,2]
[359565993,1746126639161,-247.0,0.00019367,2]
[359565995,1746126639171,-9109.77639247,0.0001942,2]
[359565997,1746126639181,-151.0,0.000196,2]
[359565999,1746126639192,-9331.6,0.00019616,3]
[359566001,1746126639201,-4665.8,0.00019616,3]
[359566003,1746126639211,-2332.9,0.00019616,3]
[359566005,1746126639220,-1166.44,0.00019616,3]
[359566007,1746126639231,-583.22,0.00019616,3]
[359566009,1746126639240,-160.0,0.00019616,3]
[359566011,1746126639250,-841.10298755,0.00019631,3]
[359566013,1746126639260,-182.07995741,0.00019631,3]
[359566015,1746126639269,-8206.49365714,0.00019631,3]
[359566017,1746126639279,-160.0,0.00019631,3]
[359566019,1746126639289,-316.0,0.00019803,2]
[359566044,1746126639513,-4861.41723744,0.0001981,2]
[359566047,1746126639524,-420.0,0.00019902,2]
[359566049,1746126639534,-420.0,0.00019902,2]
[359566051,1746126639544,-151.0,0.00019904,2]
[359566053,1746126639553,-151.0,0.00019954,2]
[359566055,1746126639563,-163.68406202,0.00019959,2]
[359566057,1746126639573,-160.0,0.0002,3]
[359566059,1746126639583,-160.0,0.0002,3]
[359566061,1746126639592,-1680.0,0.0002,2]
[359566063,1746126639602,-151.0,0.000202,4]
[359566065,1746126639611,-267.0,0.00020249,2]
[359566067,1746126639621,-151.0,0.000203,3]
[359566069,1746126639631,-600.0,0.00020822,2]
[359566071,1746126639644,-151.0,0.000209,4]
[359566073,1746126639653,-157.56,0.00021,2]
[359566075,1746126639663,-151.0,0.000212,4]
[359566077,1746126639673,-151.0,0.00021323,2]
[359566079,1746126639683,-4861.41723744,0.00021465,2]
[359566081,1746126639692,-151.0,0.000216,4]
[359566083,1746126639703,-587.0,0.0002171,2]
[359566085,1746126639712,-587.0,0.0002171,2]
[359566087,1746126639722,-160.0,0.00021917,2]
[359566089,1746126639731,-500.0,0.00021918,2]
[359566091,1746126639741,-580.62754532,0.00021918,2]
[359566093,1746126639750,-500.0,0.00021918,2]
[359566096,1746126639759,-2111.0,0.00021923,2]
[359566098,1746126639769,-151.0,0.000221,7]
[359566100,1746126639779,-151.0,0.000222,8]
[359566102,1746126639788,-151.0,0.000222,8]
[359566104,1746126639798,-3112.7,0.00022296,2]
[359566106,1746126639808,-3112.7,0.00022296,2]
[359566108,1746126639817,-3112.7,0.00022296,2]
[359566110,1746126639827,-3112.7,0.00022296,2]
[359566112,1746126639836,-900.0,0.00022466,2]
[359566114,1746126639846,-151.0,0.00022692,2]
[359566116,1746126639855,-151.0,0.000227,6]
[359566118,1746126639865,-441.64321008,0.00022782,2]
[359566120,1746126639874,-151.0,0.000229,5]
[359566122,1746126639884,-151.0,0.000229,9]
[359566124,1746126639893,-160.0,0.00023,3]
[359566126,1746126639903,-160.0,0.00023,3]
[359566129,1746126639912,-160.0,0.00023,3]
[359566131,1746126639922,-421.4777418,0.00023,3]
[359566134,1746126639931,-160.0,0.00023,3]
[359566136,1746126639941,-160.0,0.00023,3]
[359566138,1746126639950,-151.0,0.000231,10]
[359566140,1746126639960,-4861.41723744,0.00023119,2]
[359566142,1746126639970,-441.64321008,0.00023243,2]
[359566144,1746126639979,-160.0,0.00023287,2]
[359566146,1746126639989,-500.0,0.00023333,2]
[359566148,1746126639999,-151.0,0.000234,5]
[359566150,1746126640010,-441.64321008,0.0002349,2]
[359566152,1746126640019,-151.0,0.000236,5]
[359566154,1746126640029,-151.0,0.000236,8]
[359566156,1746126640039,-1464.0686977,0.00023604,2]
[359566158,1746126640048,-823.0,0.00023682,2]
[359566160,1746126640058,-340.0,0.00023682,2]
[359566162,1746126640068,-922.10997939,0.00023752,2]
[359566164,1746126640080,-1000.0,0.00023752,2]
[359566166,1746126640091,-1000.0,0.00023752,2]
[359566168,1746126640100,-1004.80803374,0.00023752,2]
[359566170,1746126640110,-231.90821332,0.00023752,2]
[359566172,1746126640119,-1000.0,0.00023752,2]
[359566174,1746126640130,-606.60952904,0.00023752,2]
[359566176,1746126640140,-1000.0,0.00023752,2]
[359566178,1746126640149,-1000.0,0.00023752,2]
[359566180,1746126640158,-500.0,0.00023752,2]
[359566182,1746126640169,-500.0,0.00023752,2]
[359566184,1746126640178,-1000.0,0.00023752,2]
[359566188,1746126640188,-1000.0,0.00023752,2]
[359566190,1746126640198,-1000.0,0.00023752,2]
[359566193,1746126640207,-1000.0,0.00023752,2]
[359566195,1746126640217,-1000.0,0.00023752,2]
[359566197,1746126640227,-1000.0,0.00023752,2]
[359566199,1746126640236,-1000.0,0.00023752,2]
[359566201,1746126640246,-441.64321008,0.00023779,2]
[359566203,1746126640256,-740.55580054,0.000239,2]
[359566205,1746126640265,-160.0,0.00023926,2]
[359566207,1746126640275,-324.35783746,0.00023962,2]
[359566209,1746126640286,-250.0,0.00023991,2]
[359566211,1746126640296,-151.0,0.00024,6]
[359566213,1746126640305,-151.0,0.00024061,2]
[359566215,1746126640315,-441.64321008,0.00024084,2]
[359566217,1746126640325,-151.0,0.000241,9]
[359566219,1746126640335,-1397.15181376,0.000241,10]
[359566221,1746126640344,-1397.15181366,0.000241,10]
[359566223,1746126640354,-1397.15181366,0.000241,10]
[359566224,1746126640363,-1397.15181366,0.000241,10]
[359566226,1746126640373,-1397.15181366,0.000241,10]
[359566229,1746126640383,-1397.15181366,0.000241,10]
[359566231,1746126640393,-1397.15181366,0.000241,10]
[359566233,1746126640403,-1200.0,0.0002411,2]
[359566235,1746126640413,-151.0,0.000242,7]
[359566236,1746126640423,-151.0,0.000242,10]
[359566239,1746126640435,-841.10298755,0.000242,10]
[359566241,1746126640445,-160.0,0.000242,10]
[359566243,1746126640454,-421.4777418,0.000242,10]
[359566245,1746126640464,-160.0,0.000242,10]
[359566247,1746126640474,-160.0,0.0002421,10]
[359566249,1746126640484,-1397.15181366,0.0002421,10]
[359566251,1746126640494,-441.64321008,0.00024264,2]
[359566253,1746126640503,-494.08560526,0.00024309,2]
[359566255,1746126640512,-2519.114059,0.00024355,2]
[359566257,1746126640522,-1434.5139088,0.00024499,2]
[359566259,1746126640532,-441.64321008,0.00024523,2]
[359566261,1746126640542,-102190.54091518,0.00024651,2]
[359566263,1746126640556,-18435.96573296,0.00024651,2]
[359566266,1746126640571,-14033.75233891,0.00024651,2]
[359566268,1746126640584,-5057.96693628,0.00024651,2]
[359566290,1746126641015,-2523.74313476,0.00024651,2]
[359566291,1746126641031,-2129.99278796,0.00024651,2]
[359566292,1746126641046,-2382.47027819,0.00024651,2]
[359566531,1746126644142,-39848.55650211,0.00024651,2]
[359566538,1746126644198,-587.8,0.00024651,2]
[359566540,1746126644210,-413.95821272,0.00024651,2]
[359566542,1746126644223,-4898.35378983,0.00024651,2]
[359566546,1746126644251,-451.69395113,0.00024651,2]
[359566605,1746126645061,-504.68148946,0.00024651,2]
[359566607,1746126645072,-253.74189733,0.00024651,2]
[359566755,1746126646463,-309.74,0.00024641,3]
[359566757,1746126646472,-555.26,0.00024651,2]
[359566759,1746126646484,-5712.33322195,0.00024651,2]
[359566764,1746126646517,-1054.54,0.00024651,2]
[359566766,1746126646528,-18070.35843798,0.00024651,2]
[359566768,1746126646540,-105369.29849821,0.00024651,2]
[359566770,1746126646549,-161.14138799,0.00024657,2]
[359566772,1746126646558,-979.6205695,0.00024658,3]
[359566774,1746126646568,-380.0,0.00024658,2]
[359566776,1746126646578,-500.0,0.00024673,2]
[359566778,1746126646587,-300.0,0.00024673,2]
[359566780,1746126646596,-500.0,0.00024673,2]
[359566782,1746126646605,-500.0,0.00024673,2]
[359566784,1746126646614,-554.54832201,0.00024673,2]
[359566786,1746126646624,-500.0,0.00024673,2]
[359566789,1746126646633,-524.55896372,0.00024673,2]
[359566791,1746126646643,-500.0,0.00024673,2]
[359566793,1746126646653,-500.0,0.00024673,2]
[359566795,1746126646663,-500.0,0.00024673,2]
[359566797,1746126646672,-4861.41723744,0.00024773,2]
[359566799,1746126646682,-500.63328036,0.00024873,2]
[359566801,1746126646692,-500.0,0.00024873,2]
[359566803,1746126646702,-490.42306879,0.00024873,2]
[359566824,1746126646890,-500.0,0.00024873,2]
[359566826,1746126646900,-500.0,0.00024873,2]
[359566828,1746126646911,-500.0,0.00024873,2]
[359566830,1746126646920,-500.0,0.00024873,2]
[359566832,1746126646930,-500.0,0.00024873,2]
[359566834,1746126646939,-500.0,0.00024873,2]
[359566836,1746126646949,-500.0,0.00024873,2]
[359566838,1746126646959,-629.0162293,0.00024873,2]
[359566840,1746126646968,-500.0,0.00024873,2]
[359566842,1746126646976,-142.53786068,0.00024873,2]
[359566844,1746126646988,-290.30806392,0.00024873,2]
[359568257,1746126873517,2411.0,0.00017368,2]
[359568261,1746126980009,24900.0,0.00017251,2]
[359568264,1746127076763,-265.00542295,0.00018153,2]
[359568265,1746127090849,-151.01394286,0.00018153,2]
[359568266,1746127095072,-300.0,0.00018153,2]
[359568267,1746127220805,1464.0686977,0.00017251,2]
[359568268,1746127300336,-822.58402607,0.0001815,2]
[359568269,1746127304580,-177.41597393,0.0001815,2]
[359568270,1746127307733,-309.48977497,0.0001815,2]
[359568271,1746127331799,-128.80548002,0.0001815,2]
[359568272,1746127331823,-121.19451998,0.0001815,2]
[359568273,1746127335503,-500.0,0.0001815,2]
[359568274,1746127340272,-420.0,0.0001815,2]
[359568275,1746127343505,-164.67236682,0.0001815,2]
[359568276,1746127420394,-279.4705777,0.0001815,2]
[359568277,1746127450410,-328.72062478,0.0001815,2]
[359568278,1746127454999,-157.02175172,0.0001815,2]
[359568279,1746127465451,-180.33606607,0.0001815,2]
[359568280,1746127468914,-233.51131837,0.0001815,2]
[359568281,1746127475375,-150.51153262,0.0001815,2]
[359568282,1746127478518,-206.36682733,0.0001815,2]
[359568283,1746127482614,-175.04475709,0.0001815,2]
[359568284,1746127482637,-14.85277427,0.00018155,2]
[359568285,1746127486383,-145.14722573,0.00018155,2]
[359568286,1746127486408,-17.89746043,0.000182,2]
[359568287,1746127490990,-133.10253957,0.000182,2]
[359568288,1746127491014,-237.69521544,0.00018239,2]
[359568289,1746127496426,-62.30478456,0.00018239,2]
[359568290,1746127496450,-311.18022121,0.00018239,2]
[359568291,1746127500173,250.0,0.0001805,2]
[359568292,1746127501244,-22.72868888,0.00018239,2]
[359568293,1746127501271,-128.27131112,0.00018239,2]
[359568311,1746127509539,-175.6895645,0.00018238,2]
[359568312,1746127513310,-124.3104355,0.00018238,2]
[359568313,1746127513335,-175.6895645,0.00018238,2]
[359568314,1746127519430,-161.16470176,0.00018238,2]
[359568315,1746127525094,-250.0,0.00018238,2]
[359568316,1746127531594,-151.0,0.000182,2]
[359568317,1746127531619,-0.856853,0.00018238,2]
[359568318,1746127538274,-175.1454709,0.00018238,2]
[359568319,1746127543018,-269.4918856,0.00018238,2]
[359568320,1746127547433,-167.65152424,0.00018238,2]
[359568321,1746127547455,-6.51221247,0.00018238,2]
[359568322,1746127551462,-227.92621908,0.00018139,2]
[359568323,1746127554383,-172.89296064,0.00018139,2]
[359568324,1746127557753,-529.44408862,0.00018139,2]
[359568325,1746127563369,-161.19478468,0.00018139,2]
[359568326,1746127568302,-167.05029507,0.00018139,2]
[359568327,1746127568327,-85.27354907,0.00018229,3]
[359568328,1746127574345,-87.61645093,0.00018229,3]
[359568329,1746127574367,-193.95683452,0.00018238,2]
[359568330,1746127585785,-161.2,0.00018229,3]
[359568331,1746127585809,-91.90854431,0.00018229,3]
[359568332,1746127593402,-160.41145569,0.00018229,3]
[359568333,1746127593427,-86.48,0.00018238,2]
[359568334,1746127601580,-13.05095301,0.00018238,2]
[359568335,1746127601603,-137.07875902,0.00018238,2]
[359568336,1746127607362,-162.92124098,0.00018238,2]
[359568337,1746127607385,-68.65204447,0.00018238,2]
[359568338,1746127611840,-165.0841926,0.00018238,2]
[359568339,1746127611871,-5.9248372,0.00018238,2]
[359568340,1746127613891,250.0,0.0001805,2]
[359568341,1746127619826,-234.91858924,0.00018238,2]
[359568342,1746127622731,-153.31977512,0.00018238,2]
[359568343,1746127627823,-194.88313599,0.00018237,2]
[359568345,1746127632898,-105.11686401,0.00018237,2]
[359568346,1746127632921,-54.88313599,0.00018238,2]
[359568348,1746127646234,-198.84581075,0.00018238,2]
[359568349,1746127649408,-125.51202671,0.00018238,2]
[359568350,1746127649441,-50.95366245,0.00018238,2]
[359568351,1746127649474,-5.28471534,0.00018238,2]
[359568352,1746127656031,-164.37957721,0.00018138,2]
[359568353,1746127659950,-166.1018682,0.00018138,2]
[359568354,1746127664342,-152.15346145,0.00018138,2]
[359568355,1746127664748,590.535315,0.00017582,2]
[359568356,1746127677182,2340.49435895,0.00016,2]
[359568358,1746127690426,-435.41411158,0.00018138,2]
[359568360,1746127694303,-339.34786087,0.00018138,2]
[359568361,1746127712388,-339.34786087,0.00018138,2]
[359568362,1746127717571,-160.65213813,0.00018138,2]
[359568363,1746127720662,-245.72976436,0.00018138,2]
[359568368,1746127724262,-163.68406202,0.00018138,2]
[359568370,1746127727563,250.0,0.00018038,2]
[359568371,1746127729161,-166.66956931,0.00018138,2]
[359568372,1746127729183,-16.72639551,0.00018138,2]
[359568373,1746127736711,-143.27360449,0.00018138,2]
[359568374,1746127736737,-34.93802289,0.00018237,2]
[359568375,1746127740786,-305.46330531,0.00018227,3]
[359568376,1746127744037,-159.9791212,0.00018227,3]
[359568377,1746127746747,-320.0,0.00018227,3]
[359568378,1746127749687,-153.58701788,0.00018227,3]
[359568379,1746127780414,-480.51080318,0.00018227,3]
[359568380,1746127784217,-151.0,0.00018227,3]
[359568381,1746127788404,-239.64305386,0.00018227,3]
[359568382,1746127789555,279.4705777,0.00017245,2]
[359568383,1746127819998,250.0,0.00018038,2]
[359568384,1746127825453,-151.0,0.00018137,2]
[359568392,1746127832671,-514.94436304,0.00018137,2]
[359568415,1746127838665,-620.54628427,0.00018137,2]
[359568416,1746127838676,-321.72428169,0.00018138,2]
[359568417,1746127838689,-300.0,0.00018226,2]
[359568418,1746127838702,-1200.0,0.00018226,2]
[359568419,1746127838713,-300.0,0.00018226,2]
[359568422,1746127838726,-1519.22669857,0.00018227,3]
[359568424,1746127838737,-1691.37,0.00018227,3]
[359568425,1746127838749,-845.68,0.00018227,3]
[359568426,1746127838761,-422.84,0.00018227,3]
[359568427,1746127838772,-211.42,0.00018227,3]
[359568429,1746127838782,-634.31,0.00018227,3]
[359568430,1746127838794,-500.0,0.00018236,2]
[359568431,1746127838804,-181.57882375,0.00018236,2]
[359568432,1746127838815,-500.0,0.00018236,2]
[359568433,1746127838826,-163.61536594,0.00018236,2]
[359568434,1746127838837,-500.0,0.00018236,2]
[359568435,1746127838848,-399.79534921,0.00018236,2]
[359568436,1746127838863,-463.77060747,0.00018236,2]
[359568437,1746127838874,-500.0,0.00018236,2]
[359568438,1746127838885,-500.0,0.00018236,2]
[359568439,1746127838896,-500.0,0.00018236,2]
[359568440,1746127838907,-2750.66743627,0.00018236,2]
[359568441,1746127838917,-2750.66743627,0.00018236,2]
[359568442,1746127838928,-500.0,0.00018236,2]
[359568443,1746127838939,-2750.66743627,0.00018236,2]
[359568444,1746127838950,-2750.66743627,0.00018236,2]
[359568445,1746127838962,-506.48008062,0.00018236,2]
[359568446,1746127838974,-2750.66743627,0.00018236,2]
[359568447,1746127838985,-2750.66743627,0.00018236,2]
[359568448,1746127838996,-1982.28353203,0.00018236,2]
[359568449,1746127839010,-768.38390424,0.00018236,2]
[359568450,1746127839021,-2750.66743627,0.00018236,2]
[359568451,1746127839032,-2750.66743627,0.00018236,2]
[359568452,1746127839043,-2750.66743627,0.00018236,2]
[359568453,1746127839054,-2750.66743627,0.00018236,2]
[359568454,1746127839064,-2750.66743627,0.00018236,2]
[359568455,1746127839076,-2750.66743627,0.00018236,2]
[359568456,1746127839086,-2750.66743627,0.00018236,2]
[359568457,1746127839096,-2750.66743627,0.00018236,2]
[359568458,1746127839106,-2750.66743627,0.00018236,2]
[359568459,1746127839117,-2750.66743627,0.00018236,2]
[359568460,1746127839127,-2750.66743627,0.00018236,2]
[359568461,1746127839136,-2750.66743627,0.00018236,2]
[359568462,1746127839147,-2750.66743627,0.00018236,2]
[359568463,1746127839156,-2750.66743627,0.00018236,2]
[359568464,1746127839165,-2750.66743627,0.00018236,2]
[359568465,1746127839175,-2750.66743627,0.00018236,2]
[359568466,1746127839184,-2750.66743627,0.00018236,2]
[359568467,1746127839194,-2750.66743627,0.00018236,2]
[359568468,1746127839542,-2750.66743627,0.00018236,2]
[359568469,1746127839562,-2750.66743627,0.00018236,2]
[359568470,1746127839578,-2750.66743627,0.00018236,2]
[359568471,1746127839589,-2750.66743627,0.00018236,2]
[359568472,1746127839598,-2750.66743627,0.00018236,2]
[359568473,1746127839608,-2750.66743627,0.00018236,2]
[359568474,1746127839617,-2750.66743627,0.00018236,2]
[359568475,1746127839628,-2750.66743627,0.00018236,2]
[359568476,1746127839637,-2750.66743627,0.00018236,2]
[359568477,1746127839646,-2750.66743627,0.00018236,2]
[359568478,1746127839656,-2750.66743627,0.00018236,2]
[359568479,1746127839666,-2750.66743627,0.00018236,2]
[359568480,1746127839675,-2750.66743627,0.00018236,2]
[359568481,1746127839684,-2750.66743627,0.00018236,2]
[359568482,1746127839694,-2750.66743627,0.00018236,2]
[359568483,1746127839704,-2750.66743627,0.00018236,2]
[359568484,1746127839714,-2750.66743627,0.00018236,2]
[359568485,1746127839723,-2750.66743627,0.00018236,2]
[359568486,1746127839732,-2750.66743627,0.00018236,2]
[359568487,1746127839742,-2750.66743627,0.00018236,2]
[359568488,1746127839752,-2750.66743627,0.00018236,2]
[359568489,1746127839762,-2750.66743627,0.00018236,2]
[359568490,1746127839773,-2750.66743627,0.00018236,2]
[359568491,1746127839784,-2750.66743627,0.00018236,2]
[359568492,1746127839794,-2750.66743627,0.00018236,2]
[359568493,1746127839805,-2750.66743627,0.00018236,2]
[359568494,1746127839814,-2750.66743627,0.00018236,2]
[359568495,1746127839824,-2750.66743627,0.00018236,2]
[359568496,1746127839833,-2750.66743627,0.00018236,2]
[359568497,1746127839843,-2750.66743627,0.00018236,2]
[359568498,1746127839852,-2750.66743627,0.00018236,2]
[359568499,1746127839862,-50000.0,0.00018238,2]
[359568500,1746127839871,-871.72295718,0.0001825,2]
[359568501,1746127839881,-320.0,0.00018255,2]
[359568502,1746127839890,-500.0,0.00018273,2]
[359568503,1746127839900,-501.12682132,0.00018273,2]
[359568504,1746127839910,-500.0,0.00018273,2]
[359568505,1746127839919,-500.0,0.00018273,2]
[359568506,1746127839928,-500.0,0.00018273,2]
[359568507,1746127839937,-500.0,0.00018273,2]
[359568508,1746127839946,-503.11651459,0.00018273,2]
[359568509,1746127839958,-500.0,0.00018273,2]
[359568510,1746127839967,-502.75942627,0.00018273,2]
[359568511,1746127839977,-151.0,0.000183,2]
[359568512,1746127839986,-152.0,0.00018503,2]
[359568513,1746127839996,-151.0,0.00018585,2]
[359568514,1746127840006,-8308.02950322,0.00018826,2]
[359568515,1746127840015,-151.0,0.000189,2]
[359568516,1746127840025,-151.0,0.000189,2]
[359568517,1746127840035,-493.70386703,0.000189,2]
[359568518,1746127840044,-193.0,0.0001892,2]
[359568519,1746127840054,-326.36236741,0.00019177,4]
[359568520,1746127840064,-233.716215,0.00019178,2]
[359568521,1746127840075,-100000.0,0.00019329,2]
[359568522,1746127840086,-246.0,0.00019345,2]
[359568523,1746127840095,-6658.82,0.00019597,3]
[359568524,1746127840104,-3382.74,0.00019597,3]
[359568525,1746127840116,-1691.36,0.00019597,3]
[359568526,1746127840127,-845.68,0.00019597,3]
[359568527,1746127840137,-422.84,0.00019597,3]
[359568528,1746127840148,-151.0,0.000196,2]
[359568529,1746127840158,-151.0,0.000196,2]
[359568530,1746127840168,-841.10298755,0.00019611,3]
[359568531,1746127840179,-182.07995741,0.00019611,3]
[359568532,1746127840188,-8206.49365714,0.00019611,3]
[359568533,1746127840198,-160.0,0.00019611,3]
[359568534,1746127840208,-855.58071076,0.00019641,2]
[359568535,1746127840217,-2333.48027396,0.00019779,2]
[359568536,1746127840228,-239.0,0.00019781,2]
[359568537,1746127840237,-420.0,0.00019882,2]
[359568538,1746127840246,-420.0,0.00019882,2]
[359568539,1746127840256,-151.0,0.00019904,2]
[359568540,1746127840265,-151.0,0.00019954,2]
[359568541,1746127840276,-163.68406202,0.00019959,2]
[359568542,1746127840286,-1391.0,0.00019979,2]
[359568543,1746127840297,-160.0,0.0002,3]
[359568544,1746127840307,-160.0,0.0002,3]
[359568545,1746127840317,-1176.90700711,0.0002,2]
[359568546,1746127840328,-358.38724253,0.0002,2]
[359568547,1746127840338,-1181.14387494,0.0002,2]
[359568548,1746127840347,-10298.65884988,0.0002,2]